bitfinex-derivatives/quotes_BTCF0:USTF0_20251011
["timestamp","ask_amount","ask_price","bid_price","bid_amount"]
[1760178412435,0.40712392,112150.0,112140.0,0.1260595]
[1760178412637,0.04632392,112150.0,112140.0,0.539762]
[1760178412945,0.97945835,112150.0,112140.0,0.02324]
[1760178413247,0.90975002,112150.0,112140.0,0.112334]
[1760178413442,0.40712392,112150.0,112140.0,0.125194]
[1760178414247,0.40712392,112150.0,112140.0,0.13777526]
[1760178415448,0.90966002,112150.0,112140.0,0.01258126]
[1760178415648,0.90966002,112150.0,112120.0,0.1028364]
[1760178415843,0.37425,112140.0,112130.0,0.02146]
[1760178416146,0.37425,112140.0,112130.0,0.123422]
[1760178416147,0.40750392,112140.0,112130.0,0.123422]
[1760178417443,0.02359392,112140.0,112130.0,0.49637467]
[1760178418850,0.45448674,112150.0,112140.0,0.123414]
[1760178419043,0.47807031,112150.0,112140.0,0.123414]
[1760178420845,0.09416031,112150.0,112140.0,0.523414]
[1760178422539,0.11727031,112150.0,112140.0,0.123414]
[1760178423051,0.03656,112140.0,112130.0,0.49636927]
[1760178423348,0.38391,112140.0,112130.0,0.13556927]
[1760178423947,0.3608,112140.0,112130.0,0.13556927]
[1760178424549,0.38391,112140.0,112130.0,0.13556927]
[1760178424946,0.3608,112140.0,112130.0,0.13556927]
[1760178425147,0.40748003,112140.0,112130.0,0.13556927]
[1760178425351,0.38391,112140.0,112130.0,0.13556927]
[1760178425548,0.40748109,112140.0,112130.0,0.13556927]
[1760178425748,0.38437109,112140.0,112130.0,0.13556927]
[1760178425944,0.02357109,112140.0,112130.0,1.2480854]
[1760178426251,0.07057674,112150.0,112140.0,0.123414]
[1760178426451,0.02357159,112150.0,112140.0,0.123414]
[1760178429156,0.09632978,112150.0,112140.0,0.123414]
[1760178429355,0.09632978,112150.0,112140.0,0.484214]
[1760178429853,0.09632978,112150.0,112140.0,0.47513013]
[1760178430653,0.11943978,112150.0,112140.0,0.47513013]
[1760178431447,0.09632978,112150.0,112140.0,0.47513013]
[1760178431844,0.09632978,112150.0,112140.0,0.83593013]
[1760178432044,0.3608,112170.0,112140.0,0.884214]
[1760178432254,0.43153595,112170.0,112160.0,0.1233981]
[1760178432955,0.45464595,112170.0,112160.0,0.1233981]
[1760178435155,1.67963097,112170.0,112160.0,0.02146]
[1760178435355,1.67963097,112170.0,112160.0,0.1105382]
[1760178435356,0.79736,112170.0,112160.0,0.1105382]
[1760178435553,0.78391,112170.0,112160.0,0.1233982]
[1760178436156,0.38391,112170.0,112160.0,0.1233982]
[1760178436657,0.3608,112170.0,112160.0,0.1233982]
[1760178436859,0.4329966,112170.0,112160.0,0.1233982]
[1760178439557,1.13992914,112170.0,112160.0,0.1233982]
[1760178439859,0.77912914,112170.0,112160.0,0.1233982]
[1760178440062,0.4498625,112180.0,112170.0,0.01286]
[1760178440257,0.4729725,112180.0,112170.0,0.03432]
[1760178440457,0.38391,112180.0,112170.0,0.1233902]
[1760178440660,0.4729723,112180.0,112170.0,0.1233902]
[1760178440856,0.0890781,112160.0,112150.0,0.3608]
[1760178441053,0.0890781,112160.0,112120.0,0.06293288]
[1760178441054,0.125662,112130.0,112120.0,7.289e-05]
[1760178441255,0.15769376,112130.0,112120.0,0.01239592]
[1760178441455,0.92740742,112130.0,112120.0,7.289e-05]
[1760178441655,0.92738579,112130.0,112120.0,7.289e-05]
[1760178442362,0.97919062,112130.0,112120.0,7.289e-05]
[1760178442757,0.87927213,112130.0,112120.0,7.289e-05]
[1760178442958,0.87927213,112130.0,112120.0,0.02153289]
[1760178443560,0.9490569,112130.0,112120.0,0.02153289]
[1760178443760,0.91704677,112130.0,112120.0,0.03484289]
[1760178444060,0.941639,112130.0,112120.0,0.03484289]
[1760178444262,0.941639,112130.0,112120.0,0.02153289]
[1760178444563,0.941639,112130.0,112120.0,0.03296021]
[1760178444758,0.94162926,112130.0,112120.0,0.03296021]
[1760178445162,1.34162926,112130.0,112120.0,0.01150021]
[1760178446863,0.022,112100.0,112090.0,0.03419]
[1760178447066,0.04658249,112100.0,112090.0,0.03419]
[1760178447460,0.49650829,112100.0,112090.0,0.03419]
[1760178447660,0.40738249,112100.0,112090.0,0.1233238]
[1760178447865,0.40748067,112100.0,112090.0,0.1233238]
[1760178448365,0.40748067,112100.0,112090.0,0.13502109]
[1760178449563,0.40748067,112100.0,112090.0,0.04588729]
[1760178451966,0.40748067,112100.0,112090.0,0.13502109]
[1760178452664,0.02468067,112100.0,112090.0,0.49582109]
[1760178452964,0.02468067,112100.0,112090.0,0.89582109]
[1760178453167,9.818e-05,112100.0,112090.0,0.89582109]
[1760178454368,0.4719113,112120.0,112110.0,0.03464]
[1760178454563,0.50978871,112120.0,112110.0,0.02133]
[1760178455271,0.47441871,112120.0,112110.0,0.03464]
[1760178455468,0.38530741,112120.0,112110.0,0.03464]
[1760178455669,0.02450741,112120.0,112110.0,0.1237579]
[1760178455971,0.40730741,112120.0,112110.0,0.03464]
[1760178456165,0.50978731,112120.0,112110.0,0.03464]
[1760178456366,0.50978731,112120.0,112110.0,0.02133]
[1760178456771,0.1111179,112110.0,112100.0,0.03464]
[1760178456970,0.1244879,112110.0,112100.0,0.03464]
[1760178457269,0.1244879,112110.0,112090.0,0.47448659]
[1760178457270,0.1244959,112100.0,112090.0,0.03302729]
[1760178457571,0.1244959,112100.0,112090.0,0.04633729]
[1760178457572,0.49643235,112100.0,112090.0,0.04633729]
[1760178458071,0.50980235,112100.0,112090.0,0.03302729]
[1760178458270,0.50980235,112100.0,112090.0,0.01169729]
[1760178458471,0.50980235,112100.0,112090.0,0.03464]
[1760178458772,0.50980235,112100.0,112090.0,0.02133]
[1760178459169,0.49643235,112100.0,112090.0,0.03464]
[1760178459862,0.40730645,112100.0,112090.0,0.1237738]
[1760178460267,0.40730645,112100.0,112090.0,0.1352109]
[1760178460467,0.38530645,112100.0,112090.0,0.1352109]
[1760178460668,0.40701645,112100.0,112090.0,0.1352109]
[1760178465873,0.38530645,112100.0,112090.0,0.1352109]
[1760178466278,0.04621645,112100.0,112090.0,0.1352109]
[1760178467276,0.02450645,112100.0,112090.0,0.4960109]
[1760178467478,0.04621645,112100.0,112090.0,0.1352109]
[1760178468381,0.02450645,112100.0,112090.0,0.1352109]
[1760178468582,0.04621645,112100.0,112090.0,0.1352109]
[1760178469587,0.77405321,112100.0,112090.0,0.1352109]
[1760178470688,0.75234321,112100.0,112090.0,0.5352109]
[1760178470985,0.74797987,112100.0,112090.0,0.8960109]
[1760178471574,0.72783677,112100.0,112090.0,0.8960109]
[1760178471774,0.36076001,112120.0,112110.0,0.0891179]
[1760178471976,0.41448014,112120.0,112110.0,0.1255279]
[1760178472374,1.08729426,112120.0,112110.0,0.1255279]
[1760178472578,0.38247001,112120.0,112110.0,0.1255279]
[1760178472780,0.1244379,112110.0,112100.0,0.02295]
[1760178472984,0.39612,112110.0,112100.0,0.1255358]
[1760178473379,0.02171,112110.0,112100.0,0.1255358]
[1760178473678,0.38228001,112120.0,112110.0,0.1229079]
[1760178474075,0.36076001,112120.0,112110.0,0.1229079]
[1760178474287,0.38228001,112120.0,112110.0,0.1229079]
[1760178474985,0.02152,112120.0,112110.0,0.1229079]
[1760178475387,0.5732169,112130.0,112120.0,0.03379]
[1760178476286,0.5732169,112130.0,112120.0,0.1228999]
[1760178476790,0.4841149,112130.0,112120.0,0.1228999]
[1760178477186,0.45210477,112130.0,112120.0,0.1228999]
[1760178479289,0.54120677,112130.0,112120.0,0.1228999]
[1760178480084,1.15615342,112130.0,112120.0,0.1228999]
[1760178480289,0.77383342,112130.0,112120.0,0.1228999]
[1760178480589,0.38232,112140.0,112130.0,0.122892]
[1760178481291,0.471414,112140.0,112130.0,0.122892]
[1760178481489,0.484074,112140.0,112130.0,0.122892]
[1760178481886,0.39498,112140.0,112130.0,0.122892]
[1760178482288,0.484074,112140.0,112130.0,0.122892]
[1760178482487,0.471414,112140.0,112130.0,0.122892]
[1760178482892,0.38232,112140.0,112130.0,0.122892]
[1760178483186,0.39498,112140.0,112130.0,0.110152]
[1760178483690,0.884074,112140.0,112130.0,0.110152]
[1760178483890,0.98095229,112140.0,112130.0,0.110152]
[1760178485092,1.58722072,112140.0,112130.0,0.02105]
[1760178485394,1.58722072,112140.0,112130.0,0.03379]
[1760178485692,1.17456072,112140.0,112130.0,0.122892]
[1760178487482,1.15304072,112140.0,112130.0,0.122892]
[1760178487690,0.79224072,112140.0,112130.0,0.89687868]
[1760178490596,0.79224072,112140.0,112130.0,0.483692]
[1760178491485,0.79224072,112140.0,112130.0,0.883692]
[1760178491685,0.79224072,112140.0,112130.0,1.29687868]
[1760178491889,0.76712222,112140.0,112130.0,1.29687868]
[1760178492190,0.38232,112160.0,112150.0,0.122876]
[1760178492396,0.40739403,112160.0,112150.0,0.122876]
[1760178493699,1.1788389,112160.0,112150.0,0.13426386]
[1760178493899,0.40739403,112160.0,112150.0,0.13426386]
[1760178494197,0.04659403,112160.0,112150.0,0.13426386]
[1760178494397,0.02152,112160.0,112150.0,0.13426386]
[1760178494594,0.38583174,112170.0,112150.0,0.13426386]
[1760178494795,0.40735174,112170.0,112160.0,0.1101281]
[1760178494995,0.40735174,112170.0,112160.0,0.1228681]
[1760178497898,1.13701271,112170.0,112160.0,0.1228681]
[1760178498098,1.20873194,112170.0,112160.0,0.1228681]
[1760178498293,1.18721194,112170.0,112160.0,0.53605478]
[1760178499900,1.18721194,112170.0,112160.0,0.1228681]
[1760178499901,1.20873194,112170.0,112160.0,0.1228681]
[1760178500095,1.18721194,112170.0,112160.0,0.1228681]
[1760178500398,1.18721194,112170.0,112160.0,0.93605478]
[1760178500899,0.82641194,112170.0,112160.0,1.29685478]
[1760178503302,0.82641194,112170.0,112160.0,0.8836681]
[1760178503501,0.82641194,112170.0,112160.0,1.29685478]
[1760178505003,0.8013802,112170.0,112160.0,1.29685478]
[1760178505199,0.3608,112190.0,112180.0,0.1256323]
[1760178505398,0.40801072,112190.0,112180.0,0.1256323]
[1760178505598,0.38582072,112190.0,112180.0,0.1256323]
[1760178505799,1.10466617,112190.0,112180.0,0.1256323]
[1760178505999,1.12685617,112190.0,112180.0,0.1256323]
[1760178506294,1.19755106,112190.0,112180.0,0.1256323]
[1760178510107,0.83675106,112190.0,112180.0,0.1256323]
[1760178511003,0.81456106,112190.0,112180.0,0.1256323]
[1760178511305,0.83675106,112190.0,112180.0,0.1256323]
[1760178511803,0.81456106,112190.0,112180.0,0.1256323]
[1760178512107,0.83675106,112190.0,112180.0,0.1256323]
[1760178512601,1.25040106,112190.0,112170.0,0.01362]
[1760178512906,0.39664,112180.0,112170.0,0.02295]
[1760178513106,0.42166072,112180.0,112170.0,0.02295]
[1760178513408,0.45367085,112180.0,112170.0,0.1120202]
[1760178513609,0.45367085,112180.0,112170.0,0.1256402]
[1760178515204,0.44002085,112180.0,112170.0,0.1256402]
[1760178516500,0.07922085,112180.0,112170.0,0.1256402]
[1760178518606,0.07922085,112180.0,112170.0,0.89962688]
[1760178518902,0.05703085,112180.0,112170.0,0.53882688]
[1760178519099,0.07922085,112180.0,112170.0,0.1256402]
[1760178521009,0.09287085,112180.0,112170.0,0.1256402]
[1760178521708,0.07922085,112180.0,112170.0,0.1256402]
[1760178524409,0.07922085,112180.0,112170.0,0.89962688]
[1760178524805,0.07922085,112180.0,112170.0,0.53882688]
[1760178525206,0.04721072,112180.0,112170.0,0.1256402]
[1760178525512,0.02502072,112180.0,112170.0,0.89962688]
[1760178525906,0.02502072,112180.0,112170.0,0.4864402]
[1760178526103,0.04746072,112180.0,112170.0,0.4864402]
[1760178527410,0.04746072,112180.0,112170.0,0.89962688]
[1760178528111,0.02502072,112180.0,112170.0,0.89962688]
[1760178528512,0.02502072,112180.0,112170.0,1.29962688]
[1760178530911,0.78954034,112190.0,112180.0,0.1236223]
[1760178531113,0.42791013,112210.0,112200.0,0.1236064]
[1760178531511,0.44401366,112210.0,112200.0,0.1236064]
[1760178531712,0.1152301,112210.0,112200.0,0.1236064]
[1760178531912,0.47603007,112210.0,112200.0,0.1236064]
[1760178532214,0.05445641,112210.0,112200.0,0.1236064]
[1760178532509,0.41525641,112210.0,112200.0,0.1236064]
[1760178532905,1.54401626,112210.0,112200.0,0.1236064]
[1760178534915,1.61384386,112210.0,112200.0,0.1236064]
[1760178535811,1.62683386,112210.0,112200.0,0.1107964]
[1760178536016,1.61384386,112210.0,112200.0,0.1238364]
[1760178536210,1.25304386,112210.0,112200.0,0.1238364]
[1760178536518,0.82043745,112210.0,112200.0,0.53702308]
[1760178536913,0.79858745,112210.0,112200.0,0.53702308]
[1760178537115,0.41466641,112220.0,112210.0,0.0890385]
[1760178537315,0.41466641,112220.0,112210.0,0.1233485]
[1760178537816,0.05386641,112230.0,112220.0,0.1233406]
[1760178538018,0.02185,112230.0,112220.0,0.1233406]
[1760178538210,0.02185,112230.0,112220.0,0.4841406]
[1760178538615,0.02185,112230.0,112220.0,0.1233406]
[1760178539008,0.09401512,112230.0,112220.0,0.1233406]
[1760178539214,0.02185,112230.0,112220.0,0.1233406]
[1760178539409,0.03484,112220.0,112210.0,0.38207]
[1760178539609,1.10731398,112220.0,112200.0,0.1020833]
[1760178539819,0.03484,112210.0,112200.0,0.1103133]
[1760178540113,0.39564,112210.0,112200.0,0.1103164]
[1760178540318,0.02185,112210.0,112200.0,0.1233564]
[1760178541007,0.39564,112210.0,112200.0,0.1233564]
[1760178541518,0.03484,112200.0,112190.0,0.4711229]
[1760178541817,0.03484,112200.0,112190.0,0.1103229]
[1760178542013,0.03484,112200.0,112190.0,0.1233629]
[1760178542913,0.04665934,112200.0,112190.0,0.1233629]
[1760178544518,0.04665934,112200.0,112190.0,0.4841629]
[1760178544819,0.02480934,112200.0,112190.0,1.23545677]
[1760178546423,0.02480934,112200.0,112190.0,0.8841629]
[1760178546718,0.02185,112210.0,112200.0,0.1233488]
[1760178546923,0.02185,112210.0,112200.0,0.4841488]
[1760178547117,0.04665872,112210.0,112200.0,0.4841488]
[1760178548517,0.05964872,112210.0,112200.0,0.38207]
[1760178548716,0.05964872,112210.0,112200.0,0.4711164]
[1760178548918,0.04665872,112210.0,112200.0,0.4841564]
[1760178549923,0.02480872,112210.0,112200.0,0.8841564]
[1760178550616,0.04665872,112210.0,112200.0,0.8841564]
[1760178551012,0.04665872,112210.0,112200.0,0.4841564]
[1760178552116,0.04665872,112210.0,112200.0,0.1233564]
[1760178552420,0.03484,112190.0,112180.0,0.02127]
[1760178552617,0.05964872,112190.0,112180.0,0.02127]
[1760178552926,0.04665872,112190.0,112180.0,0.1233723]
[1760178553115,0.04665872,112190.0,112180.0,0.4841723]
[1760178553324,0.04665872,112190.0,112180.0,0.1233723]
[1760178555118,0.04665872,112190.0,112180.0,0.03431]
[1760178555420,0.11687633,112190.0,112180.0,0.1233723]
[1760178555615,0.04665872,112190.0,112180.0,0.1233723]
[1760178557317,0.02480872,112190.0,112180.0,0.1233723]
[1760178557524,0.02185,112200.0,112190.0,0.03431]
[1760178557724,0.42089809,112200.0,112190.0,0.02127]
[1760178558620,0.42089809,112200.0,112190.0,0.1103243]
[1760178560524,0.50994449,112200.0,112190.0,0.02127]
[1760178561822,0.50994449,112200.0,112180.0,0.1020971]
[1760178562025,0.02525809,112200.0,112190.0,0.1233643]
[1760178562323,1.10571874,112220.0,112210.0,0.03431]
[1760178562525,1.13097441,112220.0,112210.0,0.03431]
[1760178562722,1.13097441,112220.0,112210.0,0.02127]
[1760178562925,0.02185,112200.0,112190.0,0.03431]
[1760178563322,0.38265,112200.0,112190.0,0.03431]
[1760178563521,0.82089567,112200.0,112180.0,0.01304]
[1760178563725,0.42089567,112200.0,112180.0,0.01304]
[1760178564128,0.39652,112190.0,112170.0,0.37384]
[1760178564323,0.42177567,112190.0,112180.0,0.02326]
[1760178564724,0.82177567,112190.0,112180.0,0.02326]
[1760178565124,0.82177567,112190.0,112180.0,0.03614]
[1760178565325,0.80878567,112190.0,112180.0,0.03614]
[1760178565620,0.44798567,112190.0,112180.0,0.03614]
[1760178565825,0.04798567,112190.0,112180.0,0.03614]
[1760178566027,0.40878567,112190.0,112180.0,0.03614]
[1760178566226,0.11885153,112190.0,112180.0,0.03614]
[1760178569723,0.11885153,112190.0,112180.0,0.1252023]
[1760178569920,0.0890623,112180.0,112160.0,0.01304]
[1760178570126,0.38353,112170.0,112160.0,0.1253782]
[1760178570430,0.02525567,112170.0,112160.0,0.1253782]
[1760178570633,0.38353,112180.0,112170.0,0.1252102]
[1760178570932,0.40900322,112180.0,112170.0,0.1252102]
[1760178571130,0.02547322,112180.0,112170.0,0.8860102]
[1760178571433,0.39652,112210.0,112200.0,0.03614]
[1760178572126,0.4855585,112210.0,112190.0,0.01288]
[1760178572926,0.4855585,112210.0,112190.0,0.1019335]
[1760178574129,0.39652,112210.0,112190.0,0.1019335]
[1760178574331,0.39652,112210.0,112200.0,0.02326]
[1760178574831,0.39652,112210.0,112190.0,0.1019335]
[1760178575030,0.39652,112210.0,112200.0,0.02326]
[1760178575731,0.39652,112210.0,112200.0,0.03614]
[1760178575933,0.39652,112210.0,112200.0,0.02326]
[1760178576233,0.39652,112210.0,112200.0,0.1123064]
[1760178577423,0.38353,112210.0,112200.0,0.1251864]
[1760178578429,0.02273,112210.0,112200.0,0.1251864]
[1760178578634,0.3608,112220.0,112210.0,0.1251785]
[1760178578635,0.38353,112220.0,112210.0,0.1251785]
[1760178578838,0.02273,112220.0,112210.0,0.1251785]
[1760178579932,0.02273,112220.0,112210.0,0.4859785]
[1760178580530,0.09312654,112230.0,112220.0,0.1251705]
[1760178580925,0.07039654,112230.0,112220.0,0.1251705]
[1760178581135,0.38353,112240.0,112230.0,0.1241026]
[1760178581531,0.02273,112240.0,112230.0,0.4849026]
[1760178581932,0.02273,112240.0,112230.0,0.1241026]
[1760178582334,0.02273,112240.0,112230.0,0.50382958]
[1760178582531,0.02273,112240.0,112230.0,0.14302958]
[1760178583236,0.04806348,112240.0,112230.0,0.14302958]
[1760178584139,0.04806348,112240.0,112230.0,0.05400698]
[1760178584340,0.04806348,112240.0,112230.0,0.14302958]
[1760178587031,0.02533348,112240.0,112230.0,0.14302958]
[1760178587237,0.04682348,112240.0,112230.0,0.14302958]
[1760178588538,0.40762348,112240.0,112230.0,0.14302958]
[1760178588938,0.4066601,112240.0,112230.0,0.14302958]
[1760178589138,0.47675375,112240.0,112230.0,0.14302958]
[1760178589437,0.11595375,112240.0,112230.0,0.14302958]
[1760178589639,0.47675375,112240.0,112230.0,0.14302958]
[1760178589838,0.87675375,112240.0,112230.0,0.01892698]
[1760178590036,0.87675375,112240.0,112230.0,0.1241026]
[1760178590232,0.51595375,112240.0,112230.0,0.1241026]
[1760178590432,0.87675375,112240.0,112230.0,0.1241026]
[1760178590835,0.47675375,112240.0,112230.0,0.1241026]
[1760178591436,0.47675375,112240.0,112230.0,0.1110626]
[1760178591841,0.47675375,112240.0,112230.0,0.1241026]
[1760178592043,0.09446375,112240.0,112230.0,0.1241026]
[1760178592343,0.11595375,112240.0,112230.0,0.1241026]
[1760178592547,0.11595375,112240.0,112230.0,0.1423557]
[1760178592738,0.48692375,112240.0,112230.0,0.0533331]
[1760178593140,0.48692375,112240.0,112230.0,0.1423557]
[1760178593335,0.97593835,112240.0,112230.0,0.0182531]
[1760178593537,0.02162,112220.0,112210.0,0.1245448]
[1760178593943,0.38242,112230.0,112220.0,0.1244305]
[1760178594144,0.40677995,112230.0,112220.0,0.14284883]
[1760178597540,0.04597995,112230.0,112220.0,0.50364883]
[1760178598640,0.04597995,112230.0,112220.0,0.90364883]
[1760178598844,0.02162,112230.0,112220.0,0.90364883]
[1760178599346,0.09171365,112240.0,112230.0,0.1244226]
[1760178599644,0.11609443,112240.0,112230.0,0.1244226]
[1760178601639,0.09447443,112240.0,112230.0,0.93676201]
[1760178602244,0.09447443,112240.0,112230.0,0.5244226]
[1760178602448,0.11609443,112240.0,112230.0,0.5244226]
[1760178604643,0.09447443,112240.0,112230.0,1.29756201]
[1760178605047,0.07009365,112240.0,112230.0,1.29756201]
[1760178605245,0.02162,112250.0,112240.0,0.1116391]
[1760178605550,0.02162,112250.0,112240.0,0.89754851]
[1760178605551,0.04604072,112250.0,112240.0,0.89754851]
[1760178606246,0.04604072,112250.0,112240.0,0.1244091]
[1760178608348,0.04604072,112250.0,112240.0,0.4852091]
[1760178608544,0.11548728,112250.0,112240.0,0.4852091]
[1760178608744,0.11548728,112250.0,112240.0,0.1244091]
[1760178609248,0.11548728,112250.0,112240.0,0.4852091]
[1760178610252,0.11548728,112250.0,112240.0,0.1244091]
[1760178610745,0.11548728,112250.0,112240.0,0.4852091]
[1760178610945,0.11548728,112250.0,112240.0,0.1244091]
[1760178611348,0.11548728,112250.0,112240.0,0.4852091]
[1760178612957,0.11548728,112250.0,112240.0,1.29754851]
[1760178613356,0.09386728,112250.0,112240.0,1.29754851]
[1760178614357,0.11548728,112250.0,112240.0,0.8852091]
[1760178614564,0.11548728,112250.0,112240.0,0.1244091]
[1760178615864,0.11548728,112250.0,112240.0,0.4852091]
[1760178616166,0.11548728,112250.0,112240.0,0.1244091]
[1760178617465,0.09386728,112250.0,112240.0,0.93674851]
[1760178617763,0.09386728,112250.0,112240.0,1.29754851]
[1760178619065,0.11548728,112250.0,112240.0,0.93674851]
[1760178619365,0.11548728,112250.0,112240.0,0.53674851]
[1760178619565,0.11548728,112250.0,112240.0,0.1244147]
[1760178619757,0.11548728,112250.0,112240.0,0.0354]
[1760178619962,0.11548728,112250.0,112240.0,0.1244147]
[1760178621470,0.11548728,112250.0,112240.0,0.4852147]
[1760178623067,0.11548728,112250.0,112240.0,0.4852146]
[1760178625171,0.09386728,112250.0,112240.0,0.4852146]
[1760178625368,0.09386728,112250.0,112240.0,0.89755401]
[1760178626370,0.09386728,112250.0,112240.0,1.29755401]
[1760178631270,0.41488245,112280.0,112270.0,0.1027609]
[1760178631474,0.41488245,112280.0,112270.0,0.1254509]
[1760178631475,0.43952159,112280.0,112270.0,0.1254509]
[1760178632077,0.5100744,112280.0,112270.0,0.03646]
[1760178632271,0.5100744,112280.0,112270.0,0.05278694]
[1760178633177,0.5100744,112280.0,112270.0,0.14177784]
[1760178633976,0.9100744,112280.0,112270.0,0.03901694]
[1760178634172,0.9100744,112280.0,112270.0,0.14177784]
[1760178635278,0.87821195,112280.0,112270.0,0.14177784]
[1760178635578,0.87821195,112280.0,112270.0,0.12800784]
[1760178637076,0.96719485,112280.0,112270.0,0.01632694]
[1760178637273,0.9100744,112280.0,112270.0,0.0862909]
[1760178637470,0.87821195,112280.0,112270.0,0.0862909]
[1760178637670,0.9990575,112280.0,112260.0,0.1027644]
[1760178637974,0.39601,112270.0,112260.0,0.1254544]
[1760178638181,0.42064914,112270.0,112260.0,0.1116844]
[1760178638680,0.42064914,112270.0,112260.0,0.12821526]
[1760178639676,0.42064914,112270.0,112260.0,0.10552966]
[1760178640082,0.90964004,112270.0,112260.0,0.01653086]
[1760178640380,0.90964004,112270.0,112240.0,0.4625813]
[1760178640583,0.38302,112250.0,112240.0,0.14099384]
[1760178640782,0.40765914,112250.0,112240.0,0.14099384]
[1760178641281,0.04685914,112250.0,112240.0,0.14099384]
[1760178641781,0.04685914,112250.0,112240.0,0.50179384]
[1760178642176,0.04685914,112250.0,112240.0,0.91413325]
[1760178642574,0.04685914,112250.0,112240.0,0.50179384]
[1760178642778,0.04685914,112250.0,112240.0,0.14099384]
[1760178644985,0.04685914,112250.0,112240.0,0.14099714]
[1760178646085,0.04685914,112250.0,112240.0,0.50179714]
[1760178648686,0.02463914,112250.0,112240.0,0.91413655]
[1760178648885,0.02224,112260.0,112250.0,0.123681]
[1760178649185,0.04718548,112270.0,112260.0,0.1236788]
[1760178649385,0.0249449,112270.0,112260.0,0.53601821]
[1760178650288,0.0249449,112270.0,112260.0,0.89681821]
[1760178650885,0.73030824,112290.0,112280.0,0.088983]
[1760178651085,0.75254824,112290.0,112280.0,0.89680241]
[1760178651689,0.73030824,112290.0,112280.0,0.89680241]
[1760178652290,0.75254824,112290.0,112280.0,0.89680241]
[1760178653385,0.80074089,112290.0,112280.0,1.29680241]
[1760178658589,0.80074089,112290.0,112280.0,0.884463]
[1760178658786,0.82377089,112290.0,112280.0,0.884463]
[1760178658990,0.82377089,112290.0,112280.0,1.29680241]
[1760178659792,0.82377089,112290.0,112280.0,0.03468]
[1760178659996,0.82377089,112290.0,112280.0,0.1236629]
[1760178660386,1.22377089,112290.0,112280.0,0.03468]
[1760178660588,1.22377089,112290.0,112260.0,0.78573941]
[1760178660589,0.02953,112280.0,112260.0,0.4623957]
[1760178661188,0.02303,112280.0,112270.0,0.03588]
[1760178661696,0.02953,112280.0,112270.0,0.02199]
[1760178662090,0.4793129,112280.0,112260.0,0.1015966]
[1760178662291,0.38383,112270.0,112260.0,0.03459]
[1760178662690,0.38383,112270.0,112260.0,0.1235888]
[1760178662891,0.40859005,112270.0,112260.0,0.1235888]
[1760178663092,0.40859005,112270.0,112260.0,0.03459]
[1760178663292,0.40859005,112270.0,112260.0,0.1235888]
[1760178666193,0.04779005,112270.0,112260.0,0.1235888]
[1760178666693,0.04779005,112270.0,112260.0,0.03459]
[1760178667386,0.04779005,112270.0,112260.0,0.1235888]
[1760178671697,0.42125005,112270.0,112260.0,0.02199]
[1760178671891,0.42125005,112270.0,112250.0,6.16353787]
[1760178672297,0.42125005,112270.0,112260.0,0.02199]
[1760178672298,0.51024095,112270.0,112260.0,0.02199]
[1760178672498,0.40859005,112270.0,112260.0,0.03588]
[1760178673101,0.40859005,112270.0,112260.0,0.1248788]
[1760178674094,0.40859005,112270.0,112260.0,0.03588]
[1760178674494,0.40859005,112270.0,112260.0,0.1248788]
[1760178675199,0.40859005,112270.0,112260.0,0.03588]
[1760178675603,0.42125005,112270.0,112260.0,0.02199]
[1760178676906,0.42125005,112270.0,112260.0,0.1248788]
[1760178677097,0.40859005,112270.0,112260.0,0.1248788]
[1760178677705,0.04779005,112270.0,112260.0,0.1248788]
[1760178681311,0.06045005,112270.0,112260.0,0.1248788]
[1760178681609,0.06045005,112270.0,112260.0,0.1109888]
[1760178682206,0.54944095,112270.0,112260.0,0.02199]
[1760178682416,0.91024095,112270.0,112250.0,5.80273837]
[1760178682607,0.02303,112260.0,112250.0,5.80273837]
[1760178682808,0.40859005,112260.0,112250.0,5.80273837]
[1760178683507,0.04779005,112260.0,112250.0,5.80273837]
[1760178684611,0.02476005,112260.0,112250.0,5.80273837]
[1760178684906,0.4715609,112270.0,112260.0,0.1105588]
[1760178685113,0.40736288,112270.0,112260.0,0.1105588]
[1760178685316,0.40736288,112270.0,112260.0,0.1234988]
[1760178687315,0.04656288,112270.0,112260.0,0.1234988]
[1760178692417,0.04656288,112270.0,112260.0,5.82463387]
[1760178694319,1.25373993,112270.0,112260.0,5.70113507]
[1760178694620,0.50285378,112270.0,112260.0,5.71407507]
[1760178694821,0.50285378,112270.0,112260.0,5.70113507]
[1760178695116,0.90285378,112270.0,112260.0,5.70113507]
[1760178695315,0.93471623,112270.0,112260.0,5.70113507]
[1760178697419,1.28560238,112270.0,112260.0,5.46948102]
[1760178697619,1.24723993,112270.0,112260.0,5.36389303]
[1760178697813,1.24723993,112270.0,112260.0,5.32889303]
[1760178698212,1.29520638,112270.0,112260.0,5.32889303]
[1760178698520,0.94715842,112270.0,112260.0,5.32889303]
[1760178699822,1.34715842,112270.0,112260.0,5.30834434]
[1760178700524,1.39507979,112270.0,112260.0,5.30834434]
[1760178700723,1.34715842,112270.0,112260.0,5.30834434]
[1760178701423,1.39506368,112270.0,112260.0,5.30834434]
[1760178702421,0.99506368,112270.0,112260.0,5.30834434]
[1760178703827,0.94715842,112270.0,112260.0,5.30834434]
[1760178704429,1.41130997,112270.0,112260.0,4.98268853]
[1760178704629,1.34715842,112270.0,112260.0,4.98268853]
[1760178705331,1.34794799,112270.0,112260.0,4.98268853]
[1760178705927,1.41175735,112270.0,112260.0,4.98268853]
[1760178706730,1.56175735,112270.0,112260.0,4.7318553]
[1760178706932,1.41175735,112270.0,112260.0,4.5435932]
[1760178707237,1.41175735,112270.0,112260.0,3.4236697]
[1760178707434,1.34794799,112270.0,112260.0,3.0732429]
[1760178707635,1.46794799,112270.0,112260.0,2.9353448]
[1760178707930,1.46794799,112270.0,112260.0,2.4759952]
[1760178708134,1.34794799,112270.0,112260.0,2.366495]
[1760178708339,1.67175735,112270.0,112260.0,2.1808635]
[1760178708531,1.67175735,112270.0,112260.0,2.0721021]
[1760178708736,1.67175735,112270.0,112260.0,1.87652]
[1760178709236,1.67175735,112270.0,112260.0,1.60003077]
[1760178709439,1.77175735,112270.0,112260.0,1.39508887]
[1760178709736,1.77175735,112270.0,112260.0,1.21514587]
[1760178709937,1.77175735,112270.0,112260.0,1.14021337]
[1760178710236,1.77175735,112270.0,112260.0,1.02130477]
[1760178710536,1.77175735,112270.0,112260.0,0.72240494]
[1760178710733,2.13255735,112270.0,112260.0,0.01554434]
[1760178710939,2.06874799,112270.0,112260.0,4e-08]
[1760178712833,2.13245937,112270.0,112260.0,4e-08]
[1760178713237,2.06874799,112270.0,112260.0,4e-08]
[1760178713437,2.13244885,112270.0,112260.0,4e-08]
[1760178713939,1.37244885,112270.0,112260.0,4e-08]
[1760178714336,1.30874799,112270.0,112260.0,4e-08]
[1760178714540,1.37243725,112270.0,112260.0,4e-08]
[1760178714734,1.30874799,112270.0,112260.0,0.40000004]